fUSD/lending_fUSD_20240327
["ID","MTS","AMOUNT","RATE_DAILY","PERIOD"]
[320816319,1711569031986,-2500.0,0.000402,2]
[320816320,1711569031996,-203.83061513,0.000402,2]
[320816321,1711569032005,-224.43650261,0.000402,9]
[320816322,1711569032015,-532.94358303,0.000402,2]
[320816323,1711569032032,-2079.35349562,0.000402,2]
[320816324,1711569032075,-1507.59933987,0.000402,2]
[320816325,1711569032085,-250.0,0.00040227,110]
[320816326,1711569032095,-8235.2484,0.00040261,2]
[320816327,1711569032105,-21948.4449,0.00040261,2]
[320816328,1711569032114,-172.5172,0.00040261,2]
[320816329,1711569032124,-487.0,0.0004027,15]
[320816330,1711569032134,-326.0,0.0004027,15]
[320816331,1711569032144,-172.0,0.0004027,15]
[320816332,1711569032154,-487.0,0.0004028,15]
[320816333,1711569032165,-326.0,0.0004028,15]
[320816334,1711569032175,-172.0,0.0004028,15]
[320816335,1711569032185,-216.5,0.0004028,15]
[320816336,1711569032195,-487.0,0.0004029,15]
[320816337,1711569032205,-326.0,0.0004029,15]
[320816338,1711569032214,-172.0,0.0004029,15]
[320816339,1711569032224,-150.5,0.0004029,15]
[320816340,1711569032233,-175.4,0.0004029,2]
[320816341,1711569032242,-175.4,0.0004029,2]
[320816342,1711569032252,-775.04986349,0.0004029,2]
[320816343,1711569032261,-775.04986349,0.0004029,2]
[320816345,1711569032271,-175.4,0.0004029,2]
[320816347,1711569032280,-175.4,0.0004029,2]
[320816349,1711569032290,-175.4,0.0004029,2]
[320816351,1711569032299,-175.4,0.0004029,2]
[320816353,1711569032308,-175.4,0.0004029,2]
[320816355,1711569032317,-175.4,0.0004029,2]
[320816358,1711569032327,-175.4,0.0004029,2]
[320816361,1711569032336,-175.4,0.0004029,2]
[320816363,1711569032345,-193.14681631,0.00040296,8]
[320816366,1711569032355,-171.5974988,0.00040296,2]
[320816367,1711569032365,-14511.46396905,0.00040297,2]
[320816370,1711569032375,-1114611.62591737,0.000403,30]
[320816372,1711569032387,-66300.48037758,0.000403,30]
[320816374,1711569032399,-4912.7707998,0.000403,30]
[320816377,1711569032419,-4770.0549657,0.000403,30]
[320816380,1711569032430,-538.60466881,0.000403,30]
[320816453,1711569037927,-1610.78750976,0.000403,30]
[320816471,1711569038090,-872.15,0.000403,30]
[320816480,1711569038169,-612.30937556,0.000403,30]
[320816482,1711569038181,-5622.30099969,0.000403,30]
[320816622,1711569040161,-686.25557,0.000403,30]
[320816623,1711569040316,-1371.88,0.000403,30]
[320816632,1711569043349,-1913.9428442,0.000403,30]
[320816633,1711569043461,-349.50149664,0.000403,30]
[320816689,1711569046247,-1000000.0,0.000403,30]
[320816720,1711569075918,690.73171906,0.0004035,30]
[320816721,1711569078236,158.34642619,0.0004035,30]
[320816722,1711569083583,827.50813781,0.0004035,30]
[320816723,1711569090091,240.81097804,0.0004035,30]
[320816724,1711569090849,903.58694345,0.0004035,30]
[320816725,1711569094024,605.44603942,0.0004035,120]
[320816726,1711569103468,303.22081259,0.0004035,120]
[320816727,1711569104204,772.50737013,0.0004035,30]
[320816728,1711569116979,643.59902733,0.0004035,120]
[320816729,1711569128354,207.62325671,0.0004035,120]
[320816733,1711569136403,313.41245276,0.0004035,120]
[320816735,1711569156831,462.8442059,0.0004035,30]
[320816741,1711569203315,274.32281831,0.0004035,30]
[320816743,1711569215168,429.450413,0.0004035,120]
[320816744,1711569220550,419.65196385,0.0004035,30]
[320816745,1711569226182,200.50601251,0.0004035,120]
[320816746,1711569227554,206.30314948,0.0004035,120]
[320816747,1711569228728,536.16849125,0.0004035,120]
[320816748,1711569230588,172.66334611,0.0004035,30]
[320816753,1711569234684,541.45669874,0.0004035,120]
[320816754,1711569235236,798.10543524,0.0004035,120]
[320816755,1711569238451,152.1493601,0.0004035,35]
[320816757,1711569240366,152.1493601,0.0004035,35]
[320816758,1711569244734,252.08869411,0.0004035,30]
[320816760,1711569268667,926.82670071,0.0004035,120]
[320816761,1711569271377,784.39402731,0.0004035,120]
[320816762,1711569272812,263.67966764,0.0004035,120]
[320816763,1711569273369,476.37773482,0.0004035,30]
[320816766,1711569274843,846.55657621,0.0004035,120]
[320816767,1711569275062,376.93505171,0.0004035,30]
[320816768,1711569275115,453.99193579,0.0004035,120]
[320816769,1711569275353,436.47358446,0.0004035,30]
[320816770,1711569275813,201.93507019,0.0004035,120]
[320816771,1711569277529,302.00457,0.0004035,30]
[320816772,1711569278830,756.0,0.0004035,120]
[320816773,1711569279512,844.109999,0.0004035,120]
[320816774,1711569279631,372.96824591,0.0004035,120]
[320816795,1711569834037,152.1493601,0.0004037,35]
[320816796,1711569916162,221.40237344,0.0004037,30]
[320816797,1711569974857,2000.0,0.0003,10]
[320816818,1711570233185,-216.78100935,0.00029997,2]
[320816819,1711570233195,-150.0,0.00029998,2]
[320816820,1711570233207,-1772.28684429,0.00029998,2]
[320816821,1711570233216,-254.5765423,0.0003,7]
[320816822,1711570233226,-210.0,0.00032998,3]
[320816823,1711570233235,-157.6244924,0.000348,2]
[320816824,1711570233247,-24065.15219062,0.00034897,4]
[320816825,1711570233257,-978.53260255,0.00034898,4]
[320816826,1711570233267,-440.77398985,0.00034898,4]
[320816827,1711570233277,-2345.35254533,0.00034898,4]
[320816828,1711570233287,-1468.79693516,0.00034898,4]
[320816829,1711570233296,-11344.64514022,0.00034898,4]
[320816830,1711570233305,-5942.88283628,0.00034898,4]
[320816831,1711570233315,-16534.3587,0.000349,2]
[320816832,1711570233325,-4306.92203166,0.00035,30]
[320816833,1711570233335,-466.09569932,0.00036269,4]
[320816834,1711570233344,-460.37,0.00036501,2]
[320816835,1711570233353,-150.99,0.00036501,30]
[320816836,1711570233362,-157.6244924,0.00036559,2]
[320816838,1711570233372,-500.0,0.00038213,15]
[320816839,1711570233381,-500.0,0.00038213,15]
[320816840,1711570233389,-500.0,0.00038213,15]
[320816841,1711570233398,-23900.0,0.00038214,2]
[320816842,1711570233407,-250.0,0.00038241,2]
[320816843,1711570233417,-157.6244924,0.00038317,2]
[320816844,1711570233426,-159.48,0.0003836,120]
[320816846,1711570233436,-3000.0,0.000385,30]
[320816849,1711570233446,-250.0,0.0003852,110]
[320816853,1711570233456,-499.99,0.0003852,2]
[320816856,1711570233466,-250.0,0.00038571,2]
[320816859,1711570233475,-1000.0,0.00038738,2]
[320816862,1711570233485,-150.0,0.00038744,2]
[320816865,1711570233495,-460.37,0.00038765,2]
[320816867,1711570233505,-1524.42,0.0003886,2]
[320816869,1711570233514,-500.0,0.00038907,2]
[320816871,1711570233523,-156.3,0.00038939,2]
[320816873,1711570233532,-473.06395,0.0003897,2]
[320816875,1711570233542,-186.67,0.00039211,120]
[320816877,1711570233551,-309.86,0.00039291,2]
[320816879,1711570233560,-3589.0,0.000395,30]
[320816881,1711570233570,-270.7,0.00039545,15]
[320816883,1711570233579,-165.65,0.00039663,2]
[320816885,1711570233589,-150.99,0.00039663,2]
[320816887,1711570233598,-794.15,0.00039775,2]
[320816889,1711570233608,-1000.0,0.00039901,2]
[320816891,1711570233619,-24990.79283724,0.00039976,2]
[320816893,1711570233628,-2448.75351312,0.0004,2]
[320816895,1711570233637,-53649.52652617,0.0004,2]
[320816897,1711570233650,-8350.47347383,0.0004,2]
[320816899,1711570233660,-157.6244924,0.00040076,2]
[320816901,1711570233669,-3999.31770516,0.00040129,2]
[320816903,1711570233678,-1218.83695261,0.00040198,4]
[320816908,1711570233717,-576.32490571,0.00040198,4]
[320816910,1711570233728,-854.0,0.00040198,4]
[320816912,1711570233740,-1527.6892128,0.00040198,4]
[320816914,1711570233749,-277.37815344,0.00040198,4]
[320816916,1711570233759,-511.39066358,0.00040198,4]
[320816978,1711570238146,-150.0,0.00037775,2]
[320816980,1711570238155,-150.0,0.00039518,2]
[320816982,1711570238164,-2850.94278031,0.00040198,4]
[320816984,1711570238174,-2247.86253959,0.00040198,4]
[320816986,1711570238183,-3220.19426931,0.00040199,4]
[320816988,1711570238192,-406.6209373,0.00040199,2]
[320816990,1711570238201,-1000.0,0.00040199,2]
[320816992,1711570238211,-107.31446346,0.000402,2]
[320817002,1711570238316,-436.13851548,0.000402,2]
[320817003,1711570238344,-3364.77402106,0.000402,2]
[320817004,1711570238353,-415.11946528,0.000402,2]
[320817005,1711570238364,-671.64650682,0.000402,2]
[320817006,1711570238384,-14846.03604008,0.000402,2]
[320817007,1711570238396,-107262.99929817,0.000402,2]
[320817008,1711570238407,-472.52937738,0.000402,2]
[320817009,1711570238427,-1284.46871091,0.000402,2]
[320817113,1711570240189,-7550.93960001,0.000402,2]
[320817114,1711570240201,-2898.59246,0.000402,2]
[320817115,1711570240554,-641.1025007,0.000402,2]
[320817116,1711570240588,-460.77415437,0.000402,2]
[320817118,1711570240618,-2752.16673426,0.000402,2]
[320817121,1711570240702,-13761.892,0.000402,2]
[320817131,1711570243327,-25177.81134969,0.000402,2]
[320817132,1711570243552,-6626.26281426,0.000402,2]
[320817133,1711570243611,-43080.23434757,0.000402,2]
[320817134,1711570243623,-5472.37372409,0.000402,2]
[320817137,1711570246367,-411.56542634,0.00040199,4]
[320817138,1711570246377,-559.30829187,0.00040199,4]
[320817139,1711570246386,-2534.95297498,0.000402,2]
[320817140,1711570246415,-213.21029943,0.000402,2]
[320817145,1711570428647,152.15124306,0.0004037,35]
[320817153,1711570787979,-1772.28684429,0.00023998,2]
[320817154,1711570788008,-16135.54389796,0.00023999,2]
[320817155,1711570788032,-222.16925775,0.00024,2]
[320817156,1711570958180,-1772.28684429,0.00023279,2]
[320817157,1711570958215,-406.48055709,0.0002328,2]
[320817158,1711570958251,-179.32336699,0.000239,2]
[320817159,1711570958291,-1235.44561692,0.00023999,2]
[320817160,1711570958328,-1.77326929,0.00024,2]
[320817161,1711570958359,-1903.83659298,0.00024,2]
[320817162,1711570958390,-359.48685988,0.00024,2]
[320817163,1711570958420,-363.92294364,0.00024,2]
[320817164,1711570958451,-295.41221015,0.00024,2]
[320817165,1711570958483,-1464.4092569,0.00024,2]
[320817166,1711570958776,-16756.80763052,0.00024,2]
[320817167,1711571029696,-227.71315571,0.00023279,2]
[320817168,1711571029722,-1544.57368858,0.00023279,2]
[320817169,1711571031091,152.15124306,0.00040415,35]
[320817170,1711571090758,-406.35103241,0.0002328,2]
[320817171,1711571090790,-159.05259037,0.00023898,2]
[320817172,1711571090843,-869.19275444,0.00023998,2]
[320817281,1711571277648,502.67282315,0.00040415,30]
[320817282,1711571350219,-876.18180942,0.00023998,2]
[320817283,1711571350242,-419.36141103,0.00023998,2]
[320817284,1711571350265,-424.46212175,0.00023999,2]
[320817285,1711571350289,-466.91273795,0.00024,2]
[320817286,1711571365364,652.04,0.00029799,20]
[320817346,1711571432907,-363.7970873,0.00024,2]
[320817347,1711571432917,-254.13211696,0.00024,2]
[320817348,1711571432929,-551.58556299,0.00024,2]
[320817349,1711571432944,-307.58827476,0.00024,2]
[320817350,1711571432954,-159.05259037,0.00025414,2]
[320817351,1711571432963,-159.05259037,0.0002693,2]
[320817352,1711571432973,-1009.05092,0.0002772,2]
[320817353,1711571432982,-159.05259037,0.00028446,2]
[320817354,1711571432992,-151.61319479,0.000287,2]
[320817355,1711571433001,-253.5,0.00028948,2]
[320817356,1711571433010,-1009.05092,0.0002898,2]
[320817357,1711571433019,-559.30829187,0.00029,2]
[320817358,1711571433031,-499.99,0.00029799,2]
[320817359,1711571433039,-262.19,0.00029799,2]
[320817360,1711571433049,-201.5463,0.00029799,2]
[320817361,1711571433058,-1903.83659298,0.00029799,2]
[320817362,1711571433067,-24562.22276384,0.00029799,2]
[320817363,1711571433076,-359.48685988,0.00029799,2]
[320817364,1711571433086,-19579.69148142,0.00029799,2]
[320817365,1711571433095,-3909.62,0.00029899,2]
[320817366,1711571433104,-159.05259037,0.00029961,2]
[320817367,1711571433113,-150.99,0.00029961,2]
[320817368,1711571433122,-664.93,0.0003,2]
[320817369,1711571433132,-1009.05093,0.0003023,2]
[320817370,1711571433141,-1009.05092,0.0003147,2]
[320817371,1711571433150,-159.05259037,0.00031477,2]
[320817372,1711571433159,-1009.05092,0.0003273,2]
[320817373,1711571433169,-878.0,0.000328,2]
[320817374,1711571433178,-159.05259037,0.00032993,2]
[320817375,1711571433187,-1992.95,0.00033132,2]
[320817376,1711571433196,-1009.05093,0.0003397,2]
[320817377,1711571433205,-472.52,0.00034268,2]
[320817378,1711571433214,-159.05259037,0.00034509,2]
[320817379,1711571433223,-5333.72575099,0.00035833,2]
[320817397,1711571433418,-18566.27424901,0.00035833,2]
[320817399,1711571433429,-169.79,0.0003592,2]
[320817401,1711571433439,-150.0,0.00035925,2]
[320817403,1711571433449,-318.62,0.00035957,2]
[320817405,1711571433459,-159.05259037,0.00036025,2]
[320817407,1711571433469,-1215.55,0.00036029,2]
[320817408,1711571433479,-500.0,0.00036086,2]
[320817409,1711571433490,-1180.95,0.00036104,60]
[320817410,1711571433500,-538.68,0.00036205,2]
[320817411,1711571433510,-2751.0,0.00036288,2]
[320817412,1711571433645,-169.79,0.00036294,2]
[320817413,1711571433655,-250.0,0.00036313,2]
[320817414,1711571433664,-250.0,0.0003634,110]
[320817415,1711571433674,-596.29,0.00036372,2]
[320817416,1711571433683,-253.78,0.00036414,15]
[320817417,1711571433692,-292.31,0.00036436,3]
[320817418,1711571433701,-435.33,0.00036458,2]
[320817419,1711571433711,-472.52,0.00036531,2]
[320817420,1711571433720,-169.79,0.00036669,2]
[320817421,1711571433729,-614.95,0.00037023,2]
[320817422,1711571433739,-169.79,0.00037043,2]
[320817423,1711571433749,-182.99,0.0003726,120]
[320817424,1711571433759,-3927.15,0.00037316,2]
[320817425,1711571433769,-200.0,0.00037388,2]
[320817426,1711571433778,-250.0,0.00037397,2]
[320817427,1711571433789,-169.79,0.00037417,2]
[320817428,1711571433798,-150.0,0.0003746,2]
[320817429,1711571433808,-159.05259037,0.00037541,2]
[320817430,1711571433818,-187.5,0.00037727,120]
[320817431,1711571433828,-1270.35,0.00037737,2]
[320817432,1711571433837,-169.79,0.00037792,2]
[320817433,1711571433847,-831.28,0.00038029,2]
[320817434,1711571433856,-150.0,0.00038204,2]
[320817435,1711571433866,-177.21,0.00038594,2]
[320817436,1711571433875,-1000.0,0.00038596,2]
[320817437,1711571433884,-472.52,0.00038795,2]
[320817438,1711571433896,-159.05259037,0.00039057,2]
[320817439,1711571433905,-172.09,0.00039118,2]
[320817440,1711571433914,-253.78,0.00039153,15]
[320817441,1711571433923,-2250.0,0.000392,2]
[320817442,1711571433932,-1000.0,0.00039371,2]
[320817443,1711571433942,-1371.01948412,0.000395,2]
[320817444,1711571433951,-614.95,0.00039763,2]
[320817445,1711571433961,-939.56901711,0.00039871,30]
[320817446,1711571433970,-1000.0,0.000399,2]
[320817447,1711571433980,-155.0,0.00040099,4]
[320817448,1711571433989,-399.76619198,0.00040099,4]
[320817449,1711571433998,-4713.52307667,0.000401,2]
[320817450,1711571434008,-196.38193981,0.000401,9]
[320817451,1711571434018,-24731.29652606,0.00040101,2]
[320817452,1711571434028,-1925.06916328,0.00040197,4]
[320817453,1711571434042,-3167.70251667,0.00040197,4]
[320817454,1711571434052,-155.0,0.00040198,4]
[320817455,1711571434062,-545.80604823,0.00040198,4]
[320817456,1711571434071,-32106.74704657,0.00040198,2]
[320817457,1711571434080,-2167.63942865,0.00040199,4]
[320817458,1711571434089,-4285.80521168,0.00040199,4]
[320817459,1711571434099,-1000.0,0.00040199,2]
[320817460,1711571434107,-4915.4652,0.000402,2]
[320817461,1711571434117,-60747.81086808,0.000402,2]
[320817462,1711571434172,-10468.8,0.000402,2]
[320817463,1711571434186,-5741.75785207,0.000402,2]
[320817464,1711571434200,-1573.68495563,0.000402,2]
[320817465,1711571434211,-413.47629013,0.000402,2]
[320817470,1711571438704,-3075.99996905,0.000402,2]
[320817471,1711571438721,-5268.59037791,0.000402,2]
[320817472,1711571438733,-6916.62239211,0.000402,2]
[320817473,1711571438744,-2778.91098398,0.000402,2]
[320817474,1711571438765,-3063.821864,0.000402,2]
[320817475,1711571438777,-1747.11886551,0.000402,2]
[320817476,1711571438790,-689.66282352,0.000402,2]
[320817480,1711571438870,-4644.34120685,0.000402,2]
[320817537,1711571440507,-2487.15021336,0.000402,2]
[320817538,1711571440519,-7442.62188612,0.000402,2]
[320817539,1711571440537,-645.92349664,0.000402,2]
[320817540,1711571440550,-658.090015,0.000402,2]
[320817541,1711571440561,-384.624,0.000402,2]
[320817542,1711571440573,-1423.47518049,0.000402,2]
[320817572,1711571443591,-3874.897,0.000402,2]
[320817573,1711571443603,-1619.55,0.000402,2]
[320817574,1711571443823,-412.74691942,0.000402,2]
[320817575,1711571443992,-155.00000002,0.00029799,2]
[320817576,1711571444001,-543.36969498,0.000402,2]
[320817577,1711571444069,-4045.38426351,0.000402,2]
[320817578,1711571445642,-314.30759326,0.00040199,4]
[320817579,1711571445652,-622.70301968,0.000402,2]
[320817580,1711571445711,-36008.48781166,0.000402,2]
[320817639,1711571446582,-10875.07182806,0.00029799,2]
[320817642,1711571446763,-352.63356546,0.00029799,2]
[320817643,1711571446827,-718.766,0.00029799,2]
[320817644,1711571446839,-12615.75137032,0.00029799,2]
[320817645,1711571446849,-77700.3780503,0.000402,2]
[320817646,1711571446858,-338.78513466,0.000402,12]
[320817647,1711571446868,-11171.9798892,0.00040223,2]
[320817648,1711571446877,-441.54139247,0.00040278,4]
[320817649,1711571446887,-1614.74270379,0.0004029,2]
[320817650,1711571446897,-1000.0,0.00040292,30]
[320817651,1711571446906,-548.498227,0.00040297,2]
[320817652,1711571446915,-1318.06273863,0.00040298,4]
[320817653,1711571446924,-1921.27100375,0.00040298,4]
[320817654,1711571446934,-267.02962518,0.00040298,4]
[320817655,1711571446944,-353.53104154,0.00040299,30]
[320817656,1711571446953,-761.77694091,0.00040299,4]
[320817657,1711571446963,-7346.21061689,0.00040299,80]
[320817658,1711571446973,-93528.95812026,0.000403,30]
[320817659,1711571446986,-4268.55327256,0.000403,30]
[320817660,1711571447015,-310.0765343,0.000403,30]
[320817661,1711571447028,-13606.73958268,0.000403,30]
[320817662,1711571447054,-223.94252704,0.00024,2]
[320817663,1711571447064,-1106.77145571,0.000403,30]
[320817677,1711571627734,152.15312603,0.00040451,35]
[320817678,1711571907766,1000.0,0.00040451,30]
[320817679,1711571908163,1741.40083,0.00040451,30]
[320817680,1711572229225,152.15312603,0.00040465,35]
[320817684,1711572509319,150.0,0.00040465,30]
[320817687,1711572555861,-1054.59333877,0.00023177,2]
[320817688,1711572555885,-236.3094373,0.00023178,2]
[320817689,1711572555911,-150.07189346,0.00023179,2]
[320817690,1711572563963,-164.68129941,0.000237,2]
[320817691,1711572563986,-223.92497303,0.00024,2]
[320817692,1711572573062,-1960.15105409,0.00024079,2]
[320817693,1711572573086,-299.999999,0.0002408,2]
[320817694,1711572581951,-150.99,0.00026,2]
[320817825,1711572624336,-8778.51278829,0.00028099,2]
[320817826,1711572624359,-499.99,0.000281,2]
[320817827,1711572624382,-406.35993677,0.00028905,2]
[320817828,1711572624405,-2294.56353309,0.00029799,2]
[320817829,1711572624428,-179.18355976,0.00029799,2]
[320817830,1711572624450,-300.0,0.00029799,2]
[320817831,1711572624473,-900.0,0.00033,2]
[320817832,1711572624500,-474.06,0.00033738,2]
[320817833,1711572626145,24562.22276384,0.00026,2]
[320817857,1711572631689,-150.0,0.00035343,2]
[320817859,1711572631698,-146.0,0.0003561,2]
[320817862,1711572631710,-866.95,0.0003561,2]
[320817863,1711572631719,-1000.0,0.00035624,2]
[320817864,1711572631728,-500.0,0.00035626,2]
[320817865,1711572631737,-250.0,0.00035665,2]
[320817866,1711572631746,-250.0,0.0003573,110]
[320817867,1711572631755,-500.0,0.00035788,2]
[320817868,1711572631764,-250.0,0.00035848,2]
[320817869,1711572631773,-163.56,0.00035879,2]
[320817870,1711572631800,-1151.59,0.00035879,2]
[320817871,1711572631809,-200.0,0.00035882,2]
[320817872,1711572631818,-2251.0,0.000359,2]
[320817873,1711572631830,-232.27,0.00035908,2]
[320817874,1711572631839,-163.5,0.00035913,2]
[320817875,1711572631848,-1052.71876365,0.00035914,4]
[320817876,1711572631857,-235.82002837,0.00035914,2]
[320817877,1711572631866,-29.17468053,0.00035915,2]
[320817878,1711572631880,-23870.82531947,0.00035915,2]
[320817879,1711572631889,-2751.0,0.00035979,2]
[320817880,1711572631898,-580.86,0.00035979,2]
[320817881,1711572631907,-150.0,0.00035979,2]
[320817882,1711572631916,-474.06,0.00036002,2]
[320817883,1711572631925,-247.64,0.00036004,15]
[320817884,1711572631938,-500.0,0.00036032,2]
[320817885,1711572631947,-653.95,0.00036128,2]
[320817886,1711572631957,-1243.2,0.00036224,2]
[320817887,1711572631967,-304.74492673,0.00036257,2]
[320817888,1711572631976,-158.18,0.00036267,2]
[320817889,1711572631985,-158.18,0.00036281,2]
[320817890,1711572631994,-158.18,0.00036295,2]
[320817891,1711572632003,-158.18,0.00036309,2]
[320817892,1711572632012,-158.18,0.00036323,2]
[320817893,1711572632022,-158.18,0.00036337,2]
[320817894,1711572632031,-158.18,0.00036351,2]
[320817895,1711572632040,-158.18,0.00036365,2]
[320817896,1711572632049,-158.18,0.00036379,2]
[320817897,1711572632058,-158.18,0.00036393,2]
[320817898,1711572632067,-158.18,0.00036407,2]
[320817899,1711572632078,-158.18,0.00036421,2]
[320817900,1711572632086,-158.18,0.00036435,2]
[320817901,1711572632095,-158.18,0.00036449,2]
[320817902,1711572632105,-159.31,0.00036457,2]
[320817903,1711572632114,-167.01,0.00036714,2]
[320817904,1711572632122,-150.0,0.00037585,2]
[320817905,1711572632132,-474.06,0.00038266,2]
[320817906,1711572632141,-155.0,0.00038285,60]
[320817907,1711572632150,-175.5,0.00038356,2]
[320817909,1711572632160,-1315.15,0.00038618,2]
[320817912,1711572632169,-247.64,0.00038744,15]
[320817914,1711572632179,-172.64,0.00039327,2]
[320817916,1711572632189,-1362.85766619,0.00039395,4]
[320817919,1711572632199,-584.86565296,0.00039395,4]
[320817922,1711572632208,-180.0,0.00039455,2]
[320817925,1711572632218,-150.0,0.00039827,2]
[320817926,1711572632227,-162.85775373,0.00039894,2]
[320817928,1711572632236,-150.0,0.00040067,2]
[320817930,1711572632246,-1000.0,0.00040077,2]
[320817932,1711572632255,-793.87149062,0.00040094,2]
[320817933,1711572632264,-2254.24802014,0.00040094,2]
[320817934,1711572632274,-785.83042699,0.00040094,2]
[320817935,1711572632284,-522.35489817,0.00040099,2]
[320817936,1711572632294,-13235.945372,0.000401,2]
[320817937,1711572632303,-1000.0,0.000401,2]
[320817938,1711572632435,-4242.17076894,0.000401,2]
[320817939,1711572632444,-23555.24317961,0.0004013,2]
[320817940,1711572632453,-150.0,0.00040167,2]
[320817941,1711572632463,-9256.1556,0.00040178,2]
[320817942,1711572632472,-171.83419729,0.00040185,9]
[320817943,1711572632481,-866.92,0.00040189,2]
[320817944,1711572632489,-580.84,0.00040189,3]
[320817945,1711572632498,-309.23498461,0.00040196,2]
[320817946,1711572632507,-202678.45363264,0.00040199,2]
[320817947,1711572632528,-9244.3813195,0.00040199,2]
[320817948,1711572632540,-5591.152029,0.00040199,2]
[320817949,1711572632669,-27486.01301886,0.00040199,2]
[320817950,1711572632679,-1143.58289778,0.00040285,2]
[320817951,1711572632688,-866.92,0.00040285,2]
[320817952,1711572632697,-866.92,0.00040285,2]
[320817953,1711572632706,-2702.66,0.00040285,2]
[320817954,1711572632715,-2702.66,0.00040285,2]
[320817955,1711572632724,-866.92,0.0004029,2]
[320817956,1711572632732,-2702.66,0.0004029,2]
[320817957,1711572632742,-2702.66,0.0004029,2]
[320817958,1711572632751,-5156.6237194,0.00040295,2]
[320817959,1711572632761,-18356.4943897,0.00040295,2]
[320817960,1711572632770,-103246.4933339,0.00040295,2]
[320817961,1711572632780,-26872.0753395,0.00040295,2]
[320817962,1711572632791,-121633.57636099,0.00040295,2]
[320817972,1711572637770,-384.90313745,0.00040295,2]
[320817973,1711572637793,-2828.64930808,0.00040295,2]
[320817974,1711572637804,-7857.96199464,0.00040295,2]
[320817975,1711572637840,-728.4979226,0.00040295,2]
[320817978,1711572637911,-266.97950805,0.00040295,2]
[320818038,1711572638478,24562.22276384,0.00026,2]
[320818068,1711572639846,-162.85775373,0.00039894,2]
[320818069,1711572639856,-26743.6893,0.00040099,2]
[320818070,1711572639866,-26809.44258519,0.00040295,2]
[320818071,1711572639875,-2000.0,0.00040296,2]
[320818072,1711572639885,-205.63715197,0.00040296,2]
[320818073,1711572639895,-5011.65703422,0.00040296,2]
[320818074,1711572639903,-487.55397956,0.00040296,2]
[320818075,1711572639913,-2012.64943698,0.00040297,4]
[320818076,1711572639922,-845.69358412,0.00040297,120]
[320818077,1711572639931,-3903.00871955,0.00040297,4]
[320818078,1711572639942,-155.0,0.00040297,4]
[320818085,1711572639951,-18.46953999,0.00040297,4]
[320818087,1711572640085,-333.09588254,0.00040297,4]
[320818090,1711572640094,-2340.53772574,0.00040298,4]
[320818092,1711572640103,-1921.27100375,0.00040298,4]
[320818094,1711572640112,-590.90258329,0.00040299,2]
[320818096,1711572640122,-63814.88051149,0.000403,30]
[320818098,1711572640135,-10006.99341776,0.000403,30]
[320818100,1711572640147,-40090.49778458,0.000403,30]
[320818101,1711572640160,-6746.76877422,0.000403,30]
[320818108,1711572642889,-52338.80689971,0.000403,30]
[320818109,1711572642899,-475.20312469,0.000403,4]
[320818110,1711572642908,-16268.93809189,0.000403,4]
[320818111,1711572643130,-0.00284555,0.000403,4]
[320818138,1711572649974,-155.0,0.000247,2]
[320818139,1711572658169,24562.22276384,0.00026,2]
[320818140,1711572661051,223.94252704,0.00024,2]
[320818141,1711572670359,54364.99736847,0.00018,2]
[320818142,1711572670396,40000.0,0.00018,2]
[320818143,1711572670430,19400.0,0.00018,2]
[320818144,1711572670458,300000.0,0.00018,2]
[320818145,1711572670489,2031253.79289101,0.00018,2]
[320818155,1711572731455,359.48685988,0.00018,2]
[320818156,1711572751451,359.48685988,0.00018,2]
[320818157,1711572775458,359.48685988,0.00018,2]